bitfinex-derivatives/quotes_ETHF0:USTF0_20260125
["timestamp","ask_amount","ask_price","bid_price","bid_amount"]
[1769327627384,4.27645908,2942.7,2941.5,0.78600938]
[1769327627584,4.13983121,2942.6,2941.5,0.78600938]
[1769327628494,4.27645908,2942.6,2941.5,0.78600938]
[1769327628797,0.13662787,2942.6,2941.5,0.78600938]
[1769327629097,0.13662787,2942.6,2941.2,2.14243531]
[1769327631494,0.13662787,2942.6,2941.0,0.17027]
[1769327631700,0.13662787,2942.6,2941.2,1.996]
[1769327632695,0.13662787,2942.6,2941.1,1.996]
[1769327633093,0.13662787,2942.4,2941.1,1.996]
[1769327633493,0.13662787,2942.4,2941.0,0.17027]
[1769327633695,0.13662787,2942.4,2941.1,2.011]
[1769327634303,0.13662787,2942.4,2941.0,0.17027]
[1769327634502,0.13662787,2942.4,2941.0,2.18127]
[1769327635398,0.13662787,2942.4,2941.1,2.013]
[1769327635598,0.13662787,2942.4,2941.0,2.16627]
[1769327637505,0.13662787,2942.4,2941.0,0.17027]
[1769327637703,0.13662787,2942.4,2941.1,2.016]
[1769327638003,0.13662787,2942.4,2941.0,0.17027]
[1769327638190,0.13662787,2942.4,2941.1,2.017]
[1769327647607,0.13662787,2942.4,2941.0,0.17027]
[1769327647808,0.13662787,2942.4,2941.0,2.18427]
[1769327653308,0.13662787,2942.4,2941.0,0.17027]
[1769327653506,0.13662787,2942.4,2941.1,2.024]
[1769327662214,0.13662787,2942.4,2941.1,2.16729902]
[1769327690840,0.13662787,2942.4,2941.3,0.78583459]
[1769327697451,0.14848553,2942.7,2941.6,0.78583459]
[1769327697746,4.11827914,2942.6,2941.4,0.78583459]
[1769327697948,4.11827914,2942.5,2941.4,0.78583459]
[1769327698246,4.11827914,2942.4,2941.4,0.78583459]
[1769327698446,0.93432012,2942.7,2941.4,0.78583459]
[1769327698745,4.11834575,2942.6,2941.4,0.78583459]
[1769327698944,4.11834575,2942.5,2941.4,0.78583459]
[1769327699144,4.11834575,2942.4,2941.4,0.78583459]
[1769327699344,0.93432012,2942.7,2941.4,0.78583459]
[1769327699644,4.11834545,2942.6,2941.4,0.78583459]
[1769327699843,4.11834545,2942.5,2941.4,0.78583459]
[1769327700045,4.11834545,2942.4,2941.4,0.78583459]
[1769327700245,0.93432012,2942.7,2941.4,0.78583459]
[1769327700444,4.11834666,2942.6,2941.4,0.78583459]
[1769327700647,4.11834666,2942.5,2941.4,0.78583459]
[1769327700853,4.11834666,2942.4,2941.4,0.78583459]
[1769327701049,0.14848553,2942.6,2941.4,0.78583459]
[1769327701345,4.26648062,2942.5,2941.4,0.78583459]
[1769327701550,4.11799509,2942.4,2941.2,0.78583459]
[1769327701848,0.14848553,2942.5,2941.2,0.78583459]
[1769327702049,4.11757896,2942.4,2941.2,0.78583459]
[1769327702250,0.14848553,2942.5,2941.2,0.78583459]
[1769327702550,4.1174843,2942.4,2941.2,0.78583459]
[1769327702747,0.14848553,2942.5,2941.2,0.78583459]
[1769327703044,4.11747219,2942.4,2941.2,0.78583459]
[1769327703245,0.14848553,2942.5,2941.2,0.78583459]
[1769327703442,4.11742599,2942.4,2941.2,0.78583459]
[1769327703643,0.14848553,2942.5,2941.2,0.78583459]
[1769327703843,4.11742434,2942.4,2941.2,0.78583459]
[1769327704049,0.14848553,2942.5,2941.2,0.78583459]
[1769327704250,4.11741629,2942.4,2941.2,0.78583459]
[1769327704450,0.14848553,2942.5,2941.2,0.78583459]
[1769327704746,4.11718966,2942.4,2941.2,0.78583459]
[1769327704946,0.14848553,2942.5,2941.2,0.78583459]
[1769327705147,0.17016,2942.9,2941.5,0.78583459]
[1769327705148,1.09931416,2942.9,2941.5,0.78583459]
[1769327705343,4.11682177,2942.8,2941.5,0.78583459]
[1769327705545,4.11682177,2942.7,2941.5,0.78583459]
[1769327705745,4.11682177,2942.6,2941.5,0.78583459]
[1769327706051,4.11682177,2942.5,2941.5,0.78583459]
[1769327706242,0.14331957,2942.8,2941.5,0.78583459]
[1769327706443,4.11669891,2942.7,2941.5,0.78583459]
[1769327706644,4.11669891,2942.6,2941.5,0.78583459]
[1769327706845,4.11669891,2942.5,2941.5,0.78583459]
[1769327707147,0.14331957,2942.8,2941.5,0.78583459]
[1769327707351,4.11655676,2942.7,2941.5,0.78583459]
[1769327707549,4.11655676,2942.6,2941.5,0.78583459]
[1769327707851,4.11655676,2942.5,2941.5,0.78583459]
[1769327708150,0.14331957,2942.8,2941.5,0.78583459]
[1769327708449,4.11645176,2942.7,2941.5,0.78583459]
[1769327708648,4.11645176,2942.6,2941.5,0.78583459]
[1769327708848,4.11645176,2942.5,2941.5,0.78583459]
[1769327709050,0.14331957,2942.8,2941.5,0.78583459]
[1769327709350,4.25978472,2942.7,2941.5,0.78583459]
[1769327709542,4.11646515,2942.6,2941.5,0.78583459]
[1769327709743,4.11646515,2942.5,2941.5,0.78583459]
[1769327709944,0.14331957,2942.7,2941.5,0.78583459]
[1769327710145,4.11686942,2942.6,2941.5,0.78583459]
[1769327710349,4.11686942,2942.5,2941.5,0.78583459]
[1769327710545,0.14331957,2942.7,2941.5,0.78583459]
[1769327710845,4.11705398,2942.6,2941.5,0.78583459]
[1769327711145,4.11705398,2942.5,2941.5,0.75181532]
[1769327711348,0.14331957,2942.7,2941.5,0.75181532]
[1769327711549,4.11698348,2942.6,2941.5,0.75181532]
[1769327711741,0.92915416,2942.3,2941.0,2.95210459]
[1769327711946,0.14331957,2942.3,2941.0,0.95610459]
[1769327717658,0.14331957,2942.3,2941.2,0.78583459]
[1769327737671,0.78583459,2942.5,2941.2,0.78583459]
[1769327737864,4.1002271,2942.4,2941.4,0.78583459]
[1769327738067,0.14447554,2942.6,2941.4,0.78583459]
[1769327738366,4.09986616,2942.5,2941.4,0.78583459]
[1769327738567,4.09986616,2942.4,2941.4,0.78583459]
[1769327738768,0.14447554,2942.6,2941.4,0.78583459]
[1769327738969,4.10008261,2942.5,2941.4,0.78583459]
[1769327739167,4.10008261,2942.4,2941.4,0.78583459]
[1769327739367,0.14447554,2942.6,2941.4,0.78583459]
[1769327739571,4.10033777,2942.5,2941.4,0.78583459]
[1769327739770,4.10033777,2942.4,2941.4,0.78583459]
[1769327739972,0.14447554,2942.6,2941.4,0.78583459]
[1769327740172,4.10033932,2942.5,2941.4,0.78583459]
[1769327740373,0.14447554,2942.6,2941.4,0.78583459]
[1769327740374,4.10033932,2942.4,2941.4,0.78583459]
[1769327740678,0.14447554,2942.6,2941.4,0.78583459]
[1769327740978,4.10061087,2942.5,2941.4,0.78583459]
[1769327741174,4.10061087,2942.4,2941.4,0.78583459]
[1769327741478,0.14447554,2942.6,2941.4,0.78583459]
[1769327741679,4.24554399,2942.5,2941.4,0.78583459]
[1769327741974,4.24554399,2942.4,2941.2,0.78583459]
[1769327742166,0.14447554,2942.4,2941.2,0.78583459]
[1769327752883,0.14447554,2942.4,2941.0,0.17027]
[1769327754283,4.1130387,2942.3,2941.0,0.17027]
[1769327754484,0.14447554,2942.4,2941.0,0.17027]
[1769327754781,4.11304095,2942.3,2941.0,0.17027]
[1769327754981,0.14447554,2942.4,2941.0,0.17027]
[1769327755181,4.11304138,2942.3,2941.0,0.17027]
[1769327755382,0.14447554,2942.4,2941.0,0.17027]
[1769327755583,4.11304075,2942.3,2941.0,0.17027]
[1769327755884,0.14447554,2942.4,2941.0,0.17027]
[1769327756084,4.11304136,2942.3,2941.0,0.17027]
[1769327756283,0.14447554,2942.4,2941.0,0.17027]
[1769327756483,4.11304206,2942.3,2941.0,0.17027]
[1769327756684,0.14447554,2942.4,2941.0,0.17027]
[1769327756884,4.11304047,2942.3,2941.0,0.17027]
[1769327757182,0.14447554,2942.4,2941.0,0.17027]
[1769327757379,0.14447554,2942.2,2940.4,8.96852931]
[1769327757577,0.14447554,2942.0,2940.4,8.99485261]
[1769327757777,4.25686664,2941.9,2940.4,0.3142767]
[1769327757976,0.14447554,2941.9,2940.4,1.10019941]
[1769327758574,0.14447554,2941.9,2940.5,0.1439767]
[1769327764989,0.14447554,2941.9,2940.4,0.95622271]
[1769327765184,0.14452496,2941.3,2939.2,0.14493726]
[1769327765384,0.17025,2941.4,2939.8,0.93085997]
[1769327765693,4.21266101,2941.3,2939.8,0.93085997]
[1769327765890,0.31477496,2941.4,2939.8,0.93085997]
[1769327766091,4.35719597,2941.3,2939.8,0.93085997]
[1769327766393,0.14452496,2941.3,2939.8,0.93085997]
[1769327766581,0.14452496,2941.3,2939.8,0.78592271]
[1769327767282,0.14452496,2941.3,2939.4,1.10121997]
[1769327767889,0.14452496,2941.3,2939.7,0.14493726]
[1769327768086,0.14452496,2941.3,2939.8,0.78592271]
[1769327768385,1.996,2941.6,2939.9,0.14493726]
[1769327768693,2.14052496,2941.6,2939.9,0.14493726]
[1769327770293,0.14452496,2941.5,2939.9,0.14493726]
[1769327780796,0.14452496,2941.5,2939.8,0.78592271]
[1769327787210,4.26993017,2941.4,2939.8,0.78592271]
[1769327787411,0.14332753,2941.3,2939.8,0.78592271]
[1769327789104,0.14332753,2941.1,2939.7,0.17034]
[1769327789711,0.14332753,2941.1,2939.5,0.92505438]
[1769327789911,0.14332753,2941.1,2939.4,1.997]
[1769327791810,0.14332753,2941.1,2939.3,1.997]
[1769327792113,0.14332753,2940.9,2939.3,1.997]
[1769327792611,0.14332753,2940.9,2939.1,0.05920165]
[1769327792612,0.14332753,2940.7,2939.1,0.05920165]
[1769327792915,0.14621615,2940.7,2939.1,0.06217012]
[1769327794024,0.14621615,2940.7,2939.1,0.00296847]
[1769327795724,0.14621615,2940.7,2939.1,0.14109508]
[1769327795921,0.14621615,2940.7,2939.2,0.78592271]
[1769327796125,0.14621615,2940.7,2939.2,0.92404932]
[1769327796326,0.14621615,2940.7,2939.3,0.13812661]
[1769327798224,0.14621615,2940.7,2939.6,0.78592271]
[1769327801228,0.14621615,2940.7,2939.3,0.13812661]
[1769327811535,0.14621615,2940.7,2939.4,0.78592271]
[1769327812929,0.14621615,2940.7,2939.8,0.78664254]
[1769327820940,0.14621615,2940.7,2939.6,0.78664254]
[1769327822742,0.14621615,2940.7,2939.4,0.78664254]
[1769327825344,4.25066114,2940.6,2939.4,0.78664254]
[1769327825534,0.14621615,2940.7,2939.4,0.78664254]
[1769327825734,4.25065959,2940.6,2939.4,0.78664254]
[1769327825941,0.14621615,2940.7,2939.4,0.78664254]
[1769327826242,4.40013102,2940.6,2939.4,0.78664254]
[1769327826540,0.14947272,2940.6,2939.4,0.78664254]
[1769327829746,0.78664254,2940.5,2939.4,0.78664254]
[1769327830146,0.93611526,2940.5,2939.4,0.78664254]
[1769327830944,0.14947272,2940.4,2939.4,0.78664254]
[1769327833752,0.93965655,2940.7,2939.4,0.78664254]
[1769327834052,4.2506879,2940.6,2939.4,0.78664254]
[1769327834252,0.93965655,2940.7,2939.4,0.78664254]
[1769327834458,4.25063197,2940.6,2939.4,0.78664254]
[1769327834649,0.93965655,2940.7,2939.4,0.78664254]
[1769327834953,4.25063739,2940.6,2939.4,0.78664254]
[1769327835146,0.93965655,2940.7,2939.4,0.78664254]
[1769327835348,4.25060098,2940.6,2939.4,0.78664254]
[1769327835549,0.93965655,2940.7,2939.4,0.78664254]
[1769327835749,4.2505947,2940.6,2939.4,0.78664254]
[1769327835950,0.93965655,2940.7,2939.4,0.78664254]
[1769327836150,4.25059648,2940.6,2939.4,0.78664254]
[1769327836351,0.93965655,2940.7,2939.4,0.78664254]
[1769327836652,4.25056477,2940.6,2939.4,0.78664254]
[1769327836850,0.93965655,2940.7,2939.4,0.78664254]
[1769327837052,4.25056477,2940.6,2939.4,0.78664254]
[1769327837256,0.93965655,2940.7,2939.4,0.78664254]
[1769327837455,4.25054107,2940.6,2939.4,0.78664254]
[1769327837654,0.93965655,2940.7,2939.4,0.78664254]
[1769327837849,4.25054139,2940.6,2939.4,0.78664254]
[1769327838050,0.93965655,2940.7,2939.4,0.78664254]
[1769327838249,4.25250499,2940.6,2939.4,0.78664254]
[1769327838450,0.93965655,2940.7,2939.4,0.78664254]
[1769327838649,4.25250506,2940.6,2939.4,0.78664254]
[1769327838851,0.93965655,2940.7,2939.4,0.78664254]
[1769327839050,4.25250836,2940.6,2939.4,0.78664254]
[1769327839257,0.93965655,2940.7,2939.4,0.78664254]
[1769327839458,4.25249824,2940.6,2939.4,0.78664254]
[1769327839656,0.93965655,2940.7,2939.4,0.78664254]
[1769327839856,4.25250076,2940.6,2939.4,0.78664254]
[1769327840063,0.93965655,2940.7,2939.4,0.78664254]
[1769327840261,4.25249448,2940.6,2939.4,0.78664254]
[1769327840558,0.93965655,2940.7,2939.4,0.78664254]
[1769327840757,4.25249822,2940.6,2939.4,0.78664254]
[1769327840956,0.93965655,2940.7,2939.4,0.78664254]
[1769327841157,4.25249822,2940.6,2939.4,0.78664254]
[1769327841361,0.93965655,2940.7,2939.4,0.78664254]
[1769327841564,4.25250079,2940.6,2939.4,0.78664254]
[1769327841757,0.93965655,2940.7,2939.4,0.78664254]
[1769327841960,4.25250055,2940.6,2939.4,0.78664254]
[1769327842254,0.93965655,2940.7,2939.4,0.78664254]
[1769327842558,4.24896165,2940.6,2939.4,0.78664254]
[1769327842760,0.93965655,2940.7,2939.4,0.78664254]
[1769327842959,4.24896903,2940.6,2939.4,0.78664254]
[1769327843158,0.93965655,2940.7,2939.4,0.78664254]
[1769327843358,4.24897113,2940.6,2939.4,0.78664254]
[1769327843562,0.93965655,2940.7,2939.4,0.78664254]
[1769327843761,4.24898628,2940.6,2939.4,0.78664254]
[1769327844061,0.93965655,2940.7,2939.4,0.78664254]
[1769327844262,4.24898988,2940.6,2939.4,0.78664254]
[1769327844560,0.93965655,2940.7,2939.4,0.78664254]
[1769327844749,4.24900783,2940.6,2939.4,0.78664254]
[1769327844952,0.93965655,2940.7,2939.4,0.78664254]
[1769327845153,4.24900827,2940.6,2939.4,0.78664254]
[1769327845355,0.93965655,2940.7,2939.4,0.78664254]
[1769327845550,4.24903608,2940.6,2939.4,0.78664254]
[1769327845750,0.93965655,2940.7,2939.4,0.78664254]
[1769327845956,4.24903587,2940.6,2939.6,0.78664254]
[1769327846157,0.15301401,2940.7,2939.8,0.78664254]
[1769327850365,0.00288862,2940.7,2939.8,0.78664254]
[1769327851763,0.00288862,2940.7,2939.6,0.78664254]
[1769327858173,0.00288862,2940.7,2939.8,0.78664254]
[1769327874992,0.00288862,2940.7,2939.4,0.92722798]
[1769327875194,0.00288862,2940.7,2939.5,0.14063999]
[1769327882091,0.1417776,2941.5,2939.9,0.14063999]
[1769327882299,4.24149041,2941.4,2939.9,0.14063999]
[1769327882485,4.24149041,2941.3,2939.9,0.14063999]
[1769327882794,4.24149041,2941.2,2939.9,0.14063999]
[1769327882994,0.1417776,2941.4,2939.9,0.14063999]
[1769327883194,4.24065595,2941.3,2939.9,0.14063999]
[1769327883396,4.24065595,2941.2,2939.9,0.14063999]
[1769327883596,0.1456723,2941.4,2939.9,0.14063999]
[1769327883798,4.24016032,2941.3,2939.9,0.14063999]
[1769327883995,0.1456723,2941.4,2939.9,0.14063999]
[1769327883996,4.24016032,2941.2,2939.9,0.14063999]
[1769327884199,0.1456723,2941.4,2939.9,0.14063999]
[1769327884399,4.23967934,2941.3,2939.9,0.14063999]
[1769327884600,4.23967934,2941.2,2939.9,0.14063999]
[1769327884801,0.1456723,2941.4,2939.9,0.14063999]
[1769327884993,4.23968069,2941.3,2939.9,0.14063999]
[1769327885193,4.23968069,2941.2,2939.9,0.14063999]
[1769327885394,0.1456723,2941.4,2939.9,0.14063999]
[1769327885603,4.23932607,2941.3,2939.9,0.14063999]
[1769327885800,4.23932607,2941.2,2939.9,0.14063999]
[1769327886093,0.1456723,2941.4,2939.9,0.14063999]
[1769327886294,4.38552875,2941.3,2939.9,0.14063999]
[1769327886494,4.2394088,2941.2,2939.9,0.14063999]
[1769327886801,0.14611995,2941.3,2939.9,0.14063999]
[1769327887099,4.23910573,2941.2,2939.9,0.14063999]
[1769327887301,0.14611995,2941.3,2939.9,0.14063999]
[1769327887500,4.23889309,2941.2,2939.9,0.14063999]
[1769327887802,0.14611995,2941.3,2939.9,0.14063999]
[1769327888001,4.23889147,2941.2,2939.9,0.14063999]
[1769327888202,0.14611995,2941.3,2939.9,0.14063999]
[1769327912117,0.0038947,2941.4,2940.2,0.78658799]
[1769327912717,4.23666132,2941.3,2940.0,0.17033]
[1769327912923,0.148991,2941.2,2940.0,0.17033]
[1769327934930,0.148991,2941.2,2940.1,0.7864888]
[1769327942830,0.7903835,2941.4,2940.1,0.7864888]
[1769327943030,4.23695322,2941.3,2940.1,0.7864888]
[1769327943228,0.0038947,2941.4,2940.1,0.7864888]
[1769327943423,4.23695851,2941.3,2940.1,0.7864888]
[1769327943623,0.1434181,2941.4,2940.1,0.7864888]
[1769327943824,4.23695835,2941.3,2940.1,0.7864888]
[1769327944126,0.1434181,2941.4,2940.1,0.7864888]
[1769327944421,4.23695878,2941.3,2940.1,0.7864888]
[1769327944618,0.1434181,2941.4,2940.1,0.7864888]
[1769327944830,4.23695273,2941.3,2940.1,0.7864888]
[1769327945037,0.1434181,2941.4,2940.1,0.7864888]
[1769327945327,4.2369521,2941.3,2940.1,0.7864888]
[1769327945535,0.1434181,2941.4,2940.1,0.7864888]
[1769327945830,4.23694503,2941.3,2940.1,0.7864888]
[1769327946023,0.1434181,2941.4,2940.1,0.7864888]
[1769327946223,4.23694349,2941.3,2940.1,0.7864888]
[1769327946423,0.1434181,2941.4,2940.1,0.7864888]
[1769327946631,4.23694025,2941.3,2940.1,0.7864888]
[1769327946934,0.1434181,2941.4,2940.1,0.7864888]
[1769327947131,4.23694052,2941.3,2940.1,0.7864888]
[1769327947431,0.1434181,2941.4,2940.1,0.7864888]
[1769327947619,4.23693466,2941.3,2940.1,0.7864888]
[1769327947820,0.1434181,2941.4,2940.1,0.7864888]
[1769327948026,4.23692946,2941.3,2940.1,0.7864888]
[1769327948324,0.1434181,2941.4,2940.1,0.7864888]
[1769327948526,4.23692631,2941.3,2940.1,0.7864888]
[1769327948821,0.1434181,2941.4,2940.1,0.7864888]
[1769327949121,4.23692588,2941.3,2940.1,0.7864888]
[1769327949321,0.1434181,2941.4,2940.1,0.7864888]
[1769327949519,4.23692068,2941.3,2940.1,0.7864888]
[1769327949721,0.1434181,2941.4,2940.1,0.7864888]
[1769327949921,4.23692066,2941.3,2940.3,0.7864888]
[1769327950121,0.1434181,2941.4,2940.3,0.7864888]
[1769327950327,4.23692689,2941.3,2940.3,0.7864888]
[1769327950527,0.1434181,2941.4,2940.3,0.7864888]
[1769327950827,4.23691802,2941.3,2940.3,0.7864888]
[1769327951020,0.1434181,2941.4,2940.3,0.7864888]
[1769327951225,4.23691845,2941.3,2940.3,0.7864888]
[1769327951426,0.1434181,2941.4,2940.3,0.7864888]
[1769327951631,4.23690548,2941.3,2940.3,0.7864888]
[1769327951831,0.1434181,2941.4,2940.3,0.7864888]
[1769327952130,4.23690504,2941.3,2940.3,0.7864888]
[1769327952430,0.1434181,2941.4,2940.3,0.7864888]
[1769327952635,4.23689461,2941.3,2940.3,0.7864888]
[1769327952932,0.1434181,2941.4,2940.3,0.7864888]
[1769327953229,4.23689429,2941.3,2940.3,0.7864888]
[1769327953431,0.1434181,2941.4,2940.3,0.7864888]
[1769327953732,4.23688639,2941.3,2940.3,0.7864888]
[1769327953931,0.1434181,2941.4,2940.1,0.7864888]
[1769327954133,4.23688639,2941.3,2940.1,0.7864888]
[1769327954430,0.1434181,2941.4,2940.1,0.7864888]
[1769327954631,4.23704311,2941.3,2940.1,0.7864888]
[1769327954831,0.1434181,2941.4,2940.1,0.7864888]
[1769327955031,4.23704653,2941.3,2940.1,0.7864888]
[1769327955228,0.1434181,2941.4,2940.1,0.7864888]
[1769327955428,4.23704203,2941.3,2940.1,0.7864888]
[1769327955723,0.1434181,2941.4,2940.1,0.7864888]
[1769327955918,4.23739542,2941.3,2940.1,0.7864888]
[1769327956119,0.1434181,2941.4,2940.1,0.7864888]
[1769327956322,4.23976549,2941.3,2940.1,0.7864888]
[1769327956522,0.1434181,2941.4,2940.1,0.7864888]
[1769327956730,4.23978765,2941.3,2940.1,0.7864888]
[1769327956923,0.1434181,2941.4,2940.1,0.7864888]
[1769327957126,4.23979575,2941.3,2940.1,0.7864888]
[1769327957422,0.1434181,2941.4,2940.1,0.7864888]
[1769327957624,4.23979764,2941.3,2940.1,0.7864888]
[1769327957825,0.1434181,2941.4,2940.1,0.7864888]
[1769327958025,4.2397983,2941.3,2940.1,0.7864888]
[1769327958234,0.1434181,2941.4,2940.1,0.7864888]
[1769327958427,4.23010396,2941.3,2940.1,0.7864888]
[1769327958625,0.1434181,2941.4,2940.1,0.7864888]
[1769327958820,4.23010413,2941.3,2940.1,0.7864888]
[1769327959029,0.1434181,2941.4,2940.1,0.7864888]
[1769327959227,4.23010413,2941.3,2940.1,0.7864888]
[1769327959428,0.1434181,2941.4,2940.1,0.7864888]
[1769327959632,4.23010697,2941.3,2940.1,0.7864888]
[1769327959834,0.1434181,2941.4,2940.1,0.7864888]
[1769327960027,4.23010697,2941.3,2940.1,0.7864888]
[1769327960233,0.1434181,2941.4,2940.1,0.7864888]
[1769327960433,4.2301108,2941.3,2940.1,0.7864888]
[1769327960637,0.1434181,2941.4,2940.1,0.7864888]
[1769327960933,4.23010362,2941.3,2940.1,0.7864888]
[1769327961135,0.1434181,2941.4,2940.1,0.7864888]
[1769327961336,4.23010387,2941.3,2940.1,0.7864888]
[1769327961540,0.1434181,2941.4,2940.1,0.7864888]
[1769327961732,4.23011024,2941.3,2940.1,0.7864888]
[1769327961934,0.1434181,2941.4,2940.1,0.7864888]
[1769327962236,4.23011045,2941.3,2940.1,0.7864888]
[1769327962437,0.1434181,2941.4,2940.1,0.7864888]
[1769327962632,4.23011851,2941.3,2940.1,0.7864888]
[1769327962834,0.1434181,2941.4,2940.1,0.7864888]
[1769327963033,4.23011851,2941.3,2940.1,0.7864888]
[1769327963245,0.1434181,2941.4,2940.1,0.7864888]
[1769327963436,4.23012618,2941.3,2940.1,0.7864888]
[1769327963638,0.1434181,2941.4,2940.1,0.7864888]
[1769327963934,4.23012942,2941.3,2940.1,0.7864888]
[1769327964233,0.1434181,2941.4,2940.1,0.7864888]
[1769327964434,4.23013334,2941.3,2940.1,0.7864888]
[1769327964637,0.1434181,2941.4,2940.1,0.7864888]
[1769327964837,4.2301368,2941.3,2940.1,0.7864888]
[1769327965137,0.1434181,2941.4,2940.1,0.7864888]
[1769327965330,4.2301368,2941.3,2940.1,0.7864888]
[1769327965531,0.1434181,2941.4,2940.1,0.7864888]
[1769327965731,4.23014113,2941.3,2940.1,0.7864888]
[1769327965932,0.1434181,2941.4,2940.1,0.7864888]
[1769327966132,4.23014113,2941.3,2940.1,0.7864888]
[1769327966341,0.1434181,2941.4,2940.1,0.7864888]
[1769327966536,4.23014829,2941.3,2940.1,0.7864888]
[1769327966737,0.1434181,2941.4,2940.1,0.7864888]
[1769327967037,4.23014829,2941.3,2940.1,0.7864888]
[1769327967336,0.1434181,2941.4,2940.1,0.7864888]
[1769327967535,4.23015606,2941.3,2940.1,0.7864888]
[1769327967743,0.1434181,2941.4,2940.1,0.7864888]
[1769327967940,4.23026888,2941.3,2940.4,0.7864888]
[1769327968130,0.1434181,2941.4,2940.4,0.7864888]
[1769327968333,4.23027203,2941.3,2940.4,0.7864888]
[1769327968533,0.1434181,2941.4,2940.4,0.7864888]
[1769327968737,4.22996484,2941.3,2940.4,0.7864888]
[1769327968942,0.1434181,2941.4,2940.4,0.7864888]
[1769327969142,4.22996407,2941.3,2940.2,0.7864888]
[1769327969343,0.1434181,2941.4,2940.2,0.7864888]
[1769327969531,4.22627347,2941.3,2940.2,0.7864888]
[1769327969737,0.1434181,2941.4,2940.2,0.7864888]
[1769327969938,4.2262751,2941.3,2940.2,0.7864888]
[1769327970138,0.1434181,2941.4,2940.2,0.7864888]
[1769327970339,4.2262751,2941.3,2940.2,0.7864888]
[1769327970541,0.1434181,2941.4,2940.2,0.7864888]
[1769327970839,4.22617546,2941.3,2940.2,0.7864888]
[1769327971034,0.1434181,2941.4,2940.2,0.7864888]
[1769327971245,4.22617546,2941.3,2940.2,0.7864888]
[1769327971445,0.1434181,2941.4,2940.2,0.7864888]
[1769327979850,0.0038947,2941.4,2940.4,0.7864888]
[1769327982754,0.0038947,2941.4,2940.2,0.7864888]
[1769327983050,0.1476211,2941.4,2940.2,0.7864888]
[1769327993661,0.9341099,2941.4,2940.2,0.7864888]
[1769327996875,0.1476211,2941.4,2940.1,0.14649744]
[1769328001876,0.0038947,2941.4,2940.1,0.14649744]
[1769328003264,0.15337964,2941.4,2940.0,0.17033]
[1769328003470,0.15337964,2941.4,2939.8,1.997]
[1769328004177,0.14948494,2941.2,2939.8,1.997]
[1769328011782,0.14948494,2941.2,2939.5,0.13940641]
[1769328012482,0.14948494,2941.0,2939.5,0.13940641]
[1769328012684,4.36530611,2940.9,2939.2,1.997]
[1769328012885,0.14948494,2940.8,2939.2,1.997]
[1769328013388,0.14948494,2940.8,2939.2,2.13640641]
[1769328013683,0.14948494,2941.2,2939.3,0.30977641]
[1769328013878,0.0038947,2941.4,2939.6,0.13729898]
[1769328014186,0.0038947,2941.4,2939.7,0.13729898]
[1769328016688,0.143515,2941.4,2939.7,0.13729898]
[1769328018089,0.1396203,2941.2,2939.1,9.02706039]
[1769328018278,0.1396203,2941.0,2939.3,0.13729898]
[1769328023792,0.1396203,2941.0,2939.2,2.16737]
[1769328023995,0.1396203,2940.8,2939.2,2.16737]
[1769328031396,0.1396203,2940.8,2939.2,2.30466898]
[1769328031596,0.1396203,2940.8,2939.3,0.13729898]
[1769328031891,0.17026,2941.1,2939.3,0.13729898]
[1769328032097,4.25768897,2941.0,2939.3,0.13729898]
[1769328032300,0.17026,2941.1,2939.3,0.13729898]
[1769328032598,4.25823057,2941.0,2939.3,0.13729898]
[1769328032798,0.17026,2941.1,2939.3,0.13729898]
[1769328032989,4.2585001,2941.0,2939.3,0.13729898]
[1769328033194,0.17026,2941.1,2939.3,0.13729898]
[1769328033393,4.2588981,2941.0,2939.3,0.13729898]
[1769328033602,0.17026,2941.1,2939.3,0.13729898]
[1769328034297,4.25936192,2941.0,2939.3,0.13729898]
[1769328034497,0.31750306,2941.1,2939.3,0.13729898]
[1769328034702,4.25952181,2941.0,2939.3,0.13729898]
[1769328034998,0.31750306,2941.1,2939.3,0.13729898]
[1769328035199,4.25952426,2941.0,2939.3,0.13729898]
[1769328035496,0.31750306,2941.1,2939.3,0.13729898]
[1769328035697,4.25977357,2941.0,2939.3,0.13729898]
[1769328035898,0.31750306,2941.1,2939.3,0.13729898]
[1769328036107,4.25977017,2941.0,2939.3,0.13729898]
[1769328036400,0.31750306,2941.1,2939.3,0.13729898]
[1769328036593,4.26005553,2941.0,2939.3,0.13729898]
[1769328036792,0.31750306,2941.1,2939.3,0.13729898]
[1769328036993,4.26005564,2941.0,2939.3,0.13729898]
[1769328037189,0.31750306,2941.1,2939.3,0.13729898]
[1769328037389,4.2602909,2941.0,2939.3,0.13729898]
[1769328037591,0.31750306,2941.1,2939.3,0.13729898]
[1769328037802,4.26029208,2941.0,2939.3,0.13729898]
[1769328038102,0.11321129,2941.0,2939.3,0.13729898]
[1769328039703,0.11321129,2941.0,2939.4,0.13576022]
[1769328041409,0.11321129,2941.0,2939.3,0.17037]
[1769328042510,0.14724306,2940.8,2939.3,0.17037]
[1769328047313,4.41174025,2940.7,2939.3,0.17037]
[1769328047612,0.14724306,2940.7,2939.3,0.17037]
[1769328055622,0.14724306,2940.7,2939.3,0.30613022]
[1769328061323,4.31355416,2940.6,2939.3,0.30613022]
[1769328061524,0.14724306,2940.7,2939.3,0.30613022]
[1769328061525,4.31355416,2940.5,2939.3,0.30613022]
[1769328061727,0.14724306,2940.7,2939.3,0.30613022]
[1769328062023,4.31357901,2940.6,2939.3,0.30613022]
[1769328062226,4.31357901,2940.5,2939.3,0.30613022]
[1769328062430,0.14724306,2940.7,2939.3,0.30613022]
[1769328062616,4.31354512,2940.6,2939.4,0.13576022]
[1769328062818,0.31750306,2941.1,2939.4,0.13576022]
[1769328063020,4.31351986,2941.0,2939.4,0.13576022]
[1769328063216,0.14775599,2940.8,2939.4,0.13576022]
[1769328063427,4.46127585,2940.7,2939.3,0.17037]
[1769328063626,4.31351986,2940.6,2939.3,0.17037]
[1769328064030,4.31351986,2940.6,2939.3,0.30824148]
[1769328064527,4.31351986,2940.6,2939.4,0.13787148]
[1769328064731,4.31351986,2940.6,2939.4,0.30823148]
[1769328064931,0.0038947,2941.4,2939.8,0.13787148]
[1769328065131,4.31710298,2941.3,2939.8,0.13787148]
[1769328065429,4.31710298,2941.2,2939.8,0.13787148]
[1769328065624,4.31710298,2941.1,2939.8,0.13787148]
[1769328065826,0.15165069,2941.4,2939.8,0.13787148]
[1769328066027,4.31565191,2941.3,2939.8,0.13787148]
[1769328066222,4.31565191,2941.2,2939.8,0.13787148]
[1769328066424,0.15165069,2941.4,2939.8,0.13787148]
[1769328066625,4.29348451,2941.3,2939.8,0.13787148]
[1769328066828,0.15165069,2941.4,2939.8,0.13787148]
[1769328066829,4.29348451,2941.2,2939.8,0.13787148]
[1769328067027,0.15165069,2941.4,2939.8,0.13787148]
[1769328067230,4.29329764,2941.3,2939.8,0.13787148]
[1769328067432,0.0038947,2941.4,2940.0,0.13787148]
[1769328067735,4.29234284,2941.3,2940.0,0.13787148]
[1769328067933,0.0038947,2941.4,2940.0,0.13787148]
[1769328068134,4.29236173,2941.3,2940.0,0.13787148]
[1769328068434,0.0038947,2941.4,2940.0,0.13787148]
[1769328070137,0.0038947,2941.4,2940.0,0.30820148]